[Event "SixDays Budapest GM-C 10-2024"]
[Site "Budapest"]
[Date "2024.10.02"]
[Round "4.4"]
[White "Kotronias, Vasilios"]
[Black "Susilodinata, Andrean"]
[Result "1/2-1/2"]
[ECO "B12"]
[WhiteElo "2458"]
[BlackElo "2393"]
[Annotator "TA"]
[PlyCount "79"]
[EventDate "2024.09.24"]
[EventType "tourn"]
[EventCountry "HUN"]
[SourceTitle "playchess.com"]
[Source "ChessBase"]
[SourceQuality "1"]
[TimeControl "5400+30"]

{[%evp 9,79,0,9,0,6,0,0,0,33,43,84,19,23,10,8,0,15,0,7,0,55,0,0,-43,-49,-87,-50,-48,-63,-179,-43,-58,-60,-25,-46,-44,81,0,0,0,0,-8,-8,0,0,0,0,0,0,0,0,0,0,0,25,22,23,0,0,0,0,0,0,0,0,0,0,0,0,0,0,0]} 1. e4 {[%emt 0:02:10]} c6 {[%emt 0:00:06]} 2. d4 {[%emt 0:00:51]} d5 {[%emt 0:00:03]} 3. e5 {[%emt 0:01:14]} Bf5 {[%emt 0:00:05]} 4. h4 {[%emt 0:00:05]} a6 {[%emt 0:01:06]} 5. Nc3 {[%emt 0:07:20]} h5 {[%emt 0:00:07]} 6. Bd3 {[%emt 0:03:00]} Bxd3 {[%emt 0:00:06]} 7. cxd3 {[%emt 0:00:02][%cal Oe5e6]} e6 {[%emt 0:00:07]} 8. Nf3 {[%emt 0:00:03]} c5 {[%emt 0:04:14]} 9. Bg5 {[%emt 0:00:43]} f6 {[%emt 0:04:28]} 10. Bf4 {[%emt 0:00:08] White is more active.} (10. Be3 $16) 10... Nc6 $11 {[%emt 0:00:17]} 11. dxc5 {[%emt 0:00:17]} Bxc5 {[%emt 0:04:03]} 12. O-O {[%emt 0:06:01]} Nge7 {[%emt 0:03:50]} 13. d4 {[%emt 0:00:28]} Ba7 {[%emt 0:01:30]} 14. Re1 {[%emt 0:00:31]} Kf7 {[%emt 0:23:01] [#]} (14... Qd7 $11) 15. b4 {[%emt 0:06:14]} Nf5 {[%emt 0:02:22][%cal Rc6d4]} 16. b5 {[%emt 0:00:25]} Ncxd4 {[%emt 0:01:15]} 17. bxa6 {[%emt 0:00:06]} bxa6 {[%emt 0:01:35] Hoping for ...Nxf3+.} 18. Rb1 {[%emt 0:00:06] Threatens to win with exf6.} Qd7 {[%emt 0:04:46]} 19. Rb4 {[%emt 0:00:38]} (19. exf6 $15 Nxf3+ (19... gxf6 20. Nxd4 Bxd4 21. Ne2 $15) 20. Qxf3 gxf6 21. Ne2) 19... Rac8 {[%emt 0:09:31]} (19... Nxf3+ $19 20. Qxf3 Nxh4) 20. Nxd4 $15 {[%emt 0:04:44]} Bxd4 {[%emt 0:00:50]} (20... Rxc3 $2 21. Nxf5 fxe5 22. Bxe5 exf5 23. Bxc3 $18) 21. Rxd4 {[%emt 0:00:11]} Rxc3 {[%emt 0:00:30]} 22. Rb4 {[%emt 0:00:08][%cal Bd4b4,Bb4b3,Bb3g3][%mdl 32]} Rc6 {[%emt 0:11:09] [#]} ({Of course not} 22... Nxh4 $6 23. exf6 gxf6 24. Qb1 $16) (22... a5 $15 23. Rb6 Rc6 (23... Nxh4 $2 24. exf6 Ng6 25. fxg7 $18)) 23. g3 {[%emt 0:04:19]} (23. Qb1 $1 $16 {exf6 is the strong threat.} Rc4 (23... Nxh4 $2 {loses.} 24. exf6 Rhc8 25. Rb7 $18) 24. Rb7) 23... Ne7 {[%emt 0:02:19]} 24. Qe2 {[%emt 0:15:11]} a5 {[%emt 0:05:11]} 25. Rb3 {[%emt 0:00:51]} Ng6 {[%emt 0:00:38]} 26. exf6 {[%emt 0:05:03]} Nxf4 {[%emt 0:03:03]} 27. gxf4 {[%emt 0:00:02]} gxf6 {[%emt 0:00:16]} ({Much weaker is} 27... Kxf6 28. Qe5+ Kf7 29. Rg3 $14) 28. Rg3 {[%emt 0:00:00]} Rc4 {[%emt 0:03:16]} 29. Qf3 {[%emt 0:00:57]} Rcc8 {[%emt 0:07:55]} 30. Kh2 {[%emt 0:04:53]} Rcg8 {[%emt 0:00:05]} 31. Reg1 {[%emt 0:00:56]} Rxg3 {[%emt 0:01:29]} 32. Qxg3 $11 {[%emt 0:00:04][%mdl 4096] Endgame. KQR-KQR} Rf8 $1 {[%emt 0:02:50]} 33. f5 {[%emt 0:00:15][%mdl 1024] Black must now prevent fxe6+. White has compensation.} e5 {[%emt 0:00:30] The position is equal.} 34. Qf3 {[%emt 0:00:57]} Rh8 {[%emt 0:01:18]} 35. Qg2 {[%emt 0:07:37] Intending Qg7+ and mate.} Rf8 $1 {[%emt 0:00:44]} 36. Qg6+ {[%emt 0:00:40]} Ke7 {[%emt 0:00:01] ...Qa4 would now be deadly.} 37. Qxh5 {[%emt 0:00:14]} Rf7 {[%emt 0:01:52] Prevents Rg7} 38. Rg8 {[%emt 0:01:54]} Qa4 {[%emt 0:01:49]} 39. Rb8 {[%emt 0:08:43] Strongly threatening Rb7+.} Kd6 {[%emt 0:00:04]} 40. Qxf7 {[%emt 0:14:51] Weighted Error Value: White=0.15 (very precise) /Black=0.18 (very precise) .  Mistake:       	White=4     	Black=3      Inaccurate:     	White=2     	Black=3      OK:         	White=17    	Black=12     Best:        	---       	Black=3      Strong:       	---       	Black=2} 1/2-1/2

[Event "SixDays Budapest GM-C 10-2024"]
[Site "Budapest"]
[Date "2024.10.02"]
[Round "4.5"]
[White "Chen, Yining"]
[Black "Mamatov, Melis"]
[Result "1/2-1/2"]
[ECO "D45"]
[WhiteElo "2252"]
[BlackElo "2362"]
[Annotator "TA"]
[PlyCount "38"]
[EventDate "2024.09.24"]
[EventType "tourn"]
[EventCountry "HUN"]
[SourceTitle "playchess.com"]
[Source "ChessBase"]
[SourceQuality "1"]
[TimeControl "5400+30"]

{[%evp 13,38,4,17,13,16,15,24,25,12,16,21,8,13,7,16,10,16,16,36,42,68,68,69,78,100,19,31]} 1. d4 {[%emt 0:02:40]} d5 {[%emt 0:00:11]} 2. c4 {[%emt 0:00:08]} c6 {[%emt 0:00:06]} 3. Nc3 {[%emt 0:00:31]} Nf6 {[%emt 0:00:08]} 4. e3 {[%emt 0:00:15]} e6 {[%emt 0:00:37][%cal Be7e6,Be6e5][%mdl 32]} 5. Nf3 {[%emt 0:00:10]} Nbd7 {[%emt 0:00:29]} 6. Be2 {[%emt 0:00:13]} dxc4 {[%emt 0:00:51]} 7. a4 {[%emt 0:00:27]} Bd6 {[%emt 0:03:56]} 8. Nd2 {[%emt 0:00:35]} Bc7 {[%emt 0:06:54]} 9. Nxc4 {[%emt 0:00:13]} e5 {[%emt 0:00:21]} 10. b3 {[%emt 0:01:33] And now Ba3 would win. White has an edge.} O-O {[%emt 0:03:09]} 11. Ba3 {[%emt 0:00:53]} Re8 {[%emt 0:00:13]} 12. O-O {[%emt 0:06:38]} e4 {[%emt 0:10:36]} 13. d5 {[%emt 0:12:05]} cxd5 {[%emt 0:02:49]} 14. Nxd5 {[%emt 0:00:06]} Nxd5 {[%emt 0:20:27]} 15. Qxd5 {[%emt 0:00:36]} Nb6 {[%emt 0:08:25]} 16. Nxb6 {[%emt 0:19:26]} Bxb6 {[%emt 0:00:28]} 17. Bc4 {[%emt 0:00:59] White is much more active.} Qf6 {[%emt 0:07:14]} 18. Rac1 {[%emt 0:07:45]} a6 {[%emt 0:07:48] [#]} 19. Qd6 {[%emt 0:12:56]} (19. a5 $1 $16 {[%cal Ra5b6]} Be6 20. Qxb7 (20. Qxe4 Bxc4 21. Qxc4 Bxa5 $14) 20... Bxc4 21. Rxc4 Bxa5 22. Rxe4) 19... Qxd6 {[%emt 0:02:35] Weighted Error Value: White=0.09 (flawless) /Black=0.10 (very precise) .  Mistake:       	White=1     	---        Inaccurate:     	---       	Black=1      OK:         	White=5     	Black=3      Best:        	---       	Black=2} 1/2-1/2

[Event "SixDays Budapest GM-C 10-2024"]
[Site "Budapest"]
[Date "2024.10.03"]
[Round "6.2"]
[White "Pacher, Milan"]
[Black "Borgaonkar Akshay"]
[Result "1/2-1/2"]
[ECO "A45"]
[WhiteElo "2343"]
[BlackElo "2415"]
[Annotator "RC"]
[PlyCount "198"]
[EventDate "2024.09.24"]
[EventType "tourn"]
[EventCountry "HUN"]
[SourceTitle "playchess.com"]
[Source "ChessBase"]
[SourceQuality "1"]
[TimeControl "5400+30"]

1. d4 {[%emt 0:27:52]} Nf6 {[%emt 0:00:15]} 2. Bg5 {[%emt 0:00:16]} g6 {[%emt 0:03:35]} 3. Bxf6 {[%emt 0:03:19]} exf6 {[%emt 0:00:03]} 4. e4 {[%emt 0:00:07]} Bg7 {[%emt 0:05:00]} 5. Bd3 {[%emt 0:00:07]} O-O {[%emt 0:02:01]} 6. Ne2 {[%emt 0:00:05]} d5 {[%emt 0:05:33]} 7. exd5 {[%emt 0:00:05]} Qxd5 {[%emt 0:00:17]} 8. O-O {[%emt 0:00:07]} f5 {[%emt 0:02:45]} 9. c3 {[%emt 0:00:06]} b6 {[%emt 0:07:42]} 10. Qb3 {[%emt 0:00:13]} Qd8 {[%emt 0:01:23]} 11. Na3 {[%emt 0:00:28]} Bb7 {[%emt 0:01:36]} 12. Rfe1 {[%emt 0:03:23]} Nd7 {[%emt 0:05:20]} 13. Nf4 {[%emt 0:06:04]} Nf6 {[%emt 0:14:00]} 14. Bf1 {[%emt 0:01:19]} Ne4 {[%emt 0:09:53]} 15. Nc4 {[%emt 0:01:36]} a5 {[%emt 0:05:05]} 16. f3 {[%emt 0:03:12]} a4 {[%emt 0:01:43]} 17. Qb4 {[%emt 0:07:01]} Bxd4+ {[%emt 0:09:51]} 18. cxd4 {[%emt 0:00:02]} Qxd4+ {[%emt 0:00:02]} 19. Re3 {[%emt 0:00:09]} Nd6 {[%emt 0:00:02]} 20. Qc3 {[%emt 0:07:13]} Qxf4 {[%emt 0:00:17]} 21. Ne5 {[%emt 0:00:03]} Rfe8 {[%emt 0:02:47]} 22. Rae1 {[%emt 0:00:22]} c5 {[%emt 0:06:18]} 23. Nd7 {[%emt 0:00:06]} Rxe3 {[%emt 0:00:16]} 24. Rxe3 {[%emt 0:00:17]} Qd4 {[%emt 0:01:06]} 25. Nxb6 {[%emt 0:00:05]} Qxc3 {[%emt 0:01:57]} 26. Rxc3 {[%emt 0:00:03]} Re8 {[%emt 0:04:14]} 27. Nxa4 {[%emt 0:01:07]} c4 {[%emt 0:00:41]} 28. Bxc4 {[%emt 0:02:46]} Nxc4 {[%emt 0:00:08]} 29. Rxc4 {[%emt 0:00:04]} Bd5 {[%emt 0:00:06]} 30. Rd4 {[%emt 0:02:01]} Bxa2 {[%emt 0:00:08]} 31. Nc5 {[%emt 0:00:05]} Re2 {[%emt 0:01:49]} 32. b4 {[%emt 0:00:27]} Rb2 {[%emt 0:00:37]} 33. h4 {[%emt 0:00:08]} Kf8 {[%emt 0:01:01]} 34. Kh2 {[%emt 0:01:54]} Ke7 {[%emt 0:00:33]} 35. Kg3 {[%emt 0:01:13]} h6 {[%emt 0:00:34]} 36. h5 {[%emt 0:01:50]} Be6 {[%emt 0:01:57]} 37. Nxe6 {[%emt 0:01:22]} Kxe6 {[%emt 0:00:12]} 38. f4 {[%emt 0:00:06]} Rb3+ {[%emt 0:00:29]} 39. Kf2 {[%emt 0:00:01]} gxh5 {[%emt 0:00:33]} 40. g3 {[%emt 0:01:10]} f6 {[%emt 0:00:30]} 41. Kg2 {[%emt 0:00:14]} Kf7 42. Kh3 {[%emt 0:00:14]} Kg6 {[%emt 0:00:28]} 43. Rc4 {[%emt 0:00:11]} Rb2 {[%emt 0:00:34]} 44. Rc8 {[%emt 0:01:39]} Rxb4 {[%emt 0:00:16]} 45. Rg8+ {[%emt 0:00:04]} Kf7 {[%emt 0:00:08]} 46. Rh8 {[%emt 0:00:05]} Kg7 {[%emt 0:00:07]} 47. Ra8 {[%emt 0:00:05]} Rb2 {[%emt 0:00:06]} 48. Rc8 {[%emt 0:00:51]} Rf2 {[%emt 0:00:25]} 49. Ra8 {[%emt 0:01:53]} h4 {[%emt 0:01:04]} 50. Ra5 {[%emt 0:02:50]} Kg6 {[%emt 0:00:27]} 51. Rb5 {[%emt 0:00:03]} hxg3 {[%emt 0:01:40]} 52. Kxg3 {[%emt 0:00:03]} Rc2 {[%emt 0:00:15]} 53. Ra5 {[%emt 0:00:29]} Rc3+ {[%emt 0:00:31]} 54. Kh4 {[%emt 0:00:54]} Rf3 {[%emt 0:00:09]} 55. Ra4 {[%emt 0:00:03]} Rf1 {[%emt 0:00:22]} 56. Kg3 {[%emt 0:00:18]} Rg1+ {[%emt 0:01:19]} 57. Kf2 {[%emt 0:00:56]} Rb1 {[%emt 0:00:48]} 58. Kg3 {[%emt 0:00:15]} Rb3+ {[%emt 0:01:15]} 59. Kh4 {[%emt 0:00:26]} Re3 {[%emt 0:01:03]} 60. Ra3 {[%emt 0:01:45]} Re1 {[%emt 0:00:24]} 61. Kg3 {[%emt 0:03:42]} Rb1 {[%emt 0:00:08]} 62. Ra5 {[%emt 0:00:43]} Rb3+ {[%emt 0:00:22]} 63. Kh4 {[%emt 0:00:38]} Rf3 {[%emt 0:00:39]} 64. Ra4 {[%emt 0:00:04]} h5 {[%emt 0:00:48]} 65. Rb4 {[%emt 0:00:14]} Rf1 {[%emt 0:00:05]} 66. Kg3 {[%emt 0:00:07]} Rg1+ {[%emt 0:00:16]} 67. Kf3 {[%emt 0:02:57]} h4 {[%emt 0:00:19]} 68. Rb8 {[%emt 0:06:09]} Rg3+ {[%emt 0:00:11]} 69. Kf2 {[%emt 0:00:02]} Kh5 {[%emt 0:00:10]} 70. Rf8 {[%emt 0:00:13]} Kg4 {[%emt 0:00:23]} 71. Rxf6 {[%emt 0:00:04]} Ra3 {[%emt 0:02:20]} 72. Rb6 {[%emt 0:01:16]} h3 {[%emt 0:00:54]} 73. Kg1 {[%emt 0:00:04]} Ra1+ {[%emt 0:01:44]} 74. Kh2 {[%emt 0:00:02]} Ra2+ {[%emt 0:00:11]} 75. Kg1 {[%emt 0:00:25]} Kxf4 {[%emt 0:00:47]} 76. Rb8 {[%emt 0:01:12]} Kf3 {[%emt 0:02:48]} 77. Rb3+ {[%emt 0:00:41]} Kg4 {[%emt 0:00:05]} 78. Rb8 {[%emt 0:00:05]} f4 {[%emt 0:00:19]} 79. Rg8+ {[%emt 0:00:36]} Kf3 {[%emt 0:00:09]} 80. Rb8 {[%emt 0:00:04]} Rg2+ {[%emt 0:00:58]} 81. Kh1 {[%emt 0:00:24]} Re2 {[%emt 0:00:26]} 82. Kg1 {[%emt 0:01:42]} Re3 {[%emt 0:01:30]} 83. Kh2 {[%emt 0:01:09]} Kf2 {[%emt 0:00:20]} 84. Rb2+ {[%emt 0:00:06]} Kf1 {[%emt 0:00:31]} 85. Rb1+ {[%emt 0:01:42]} Re1 {[%emt 0:00:05]} 86. Rb3 {[%emt 0:01:16]} Re2+ {[%emt 0:00:24]} 87. Kh1 {[%emt 0:00:04]} Kf2 {[%emt 0:02:46]} 88. Kh2 {[%emt 0:01:08]} Re7 {[%emt 0:00:31]} 89. Rb2+ {[%emt 0:00:36]} Kf3 {[%emt 0:00:07]} 90. Rb1 {[%emt 0:01:50]} Kg4 {[%emt 0:00:17]} 91. Rb2 {[%emt 0:03:15]} Re4 {[%emt 0:00:08]} 92. Rb8 {[%emt 0:00:28]} Re2+ {[%emt 0:00:12]} 93. Kg1 {[%emt 0:00:41]} f3 {[%emt 0:00:34]} 94. Rg8+ {[%emt 0:02:09]} Kf4 {[%emt 0:00:04]} 95. Rf8+ {[%emt 0:00:04]} Ke3 {[%emt 0:00:04]} 96. Re8+ {[%emt 0:00:05]} Kd2 {[%emt 0:00:08]} 97. Rf8 {[%emt 0:00:07]} h2+ {[%emt 0:00:23]} 98. Kh1 {[%emt 0:00:02]} f2 {[%emt 0:00:13]} 99. Rxf2 {[%emt 0:00:07]} Rxf2 {[%emt 0:00:13]} 1/2-1/2

[Event "SixDays Budapest GM-C 10-2024"]
[Site "Budapest"]
[Date "2024.10.03"]
[Round "6.3"]
[White "Kotronias, Vasilios"]
[Black "Srihari L R"]
[Result "1-0"]
[ECO "B69"]
[WhiteElo "2458"]
[BlackElo "2503"]
[Annotator "TA"]
[PlyCount "99"]
[EventDate "2024.09.24"]
[EventType "tourn"]
[EventCountry "HUN"]
[SourceTitle "playchess.com"]
[Source "ChessBase"]
[SourceQuality "1"]
[TimeControl "5400+30"]

{[%evp 24,99,54,27,26,31,41,32,50,26,75,22,41,25,45,21,31,27,23,29,162,41,96,80,77,53,62,50,57,55,79,51,56,60,52,36,149,153,145,146,149,24,31,28,146,134,258,258,241,280,368,362,386,341,357,214,207,225,414,397,963,1037,985,705,29964,29966,29966,29964,29963,29963,29965,29966,29969,29967,29990,29990,29991,29992]} 1. e4 {[%emt 0:00:03]} c5 {[%emt 0:11:24]} 2. Nf3 {[%emt 0:00:10]} d6 {[%emt 0:00:04]} 3. d4 {[%emt 0:00:10]} cxd4 {[%emt 0:00:06]} 4. Nxd4 {[%emt 0:00:06]} Nf6 {[%emt 0:00:03]} 5. Nc3 {[%emt 0:00:06]} Nc6 {[%emt 0:00:07]} 6. Bg5 {[%emt 0:00:11]} e6 {[%emt 0:00:05]} 7. Qd2 {[%emt 0:00:08]} a6 {[%emt 0:00:05]} 8. O-O-O {[%emt 0:00:08]} Be7 {[%emt 0:00:04]} 9. f4 {[%emt 0:00:18]} Bd7 {[%emt 0:00:16]} 10. Nf3 {[%emt 0:00:10]} b5 {[%emt 0:00:10]} 11. Bxf6 {[%emt 0:00:05]} gxf6 {[%emt 0:00:03]} 12. Kb1 {[%emt 0:00:25]} Qb6 {[%emt 0:00:05]} 13. Bd3 {[%emt 0:00:06]} (13. f5 {sieht schärfer aus.} O-O-O 14. a4 Ne5 15. axb5 axb5 16. fxe6 fxe6 17. Nxb5 d5 18. Nxe5 fxe5 19. Qe2) 13... O-O-O {[%emt 0:00:05]} 14. Rhe1 {[%emt 0:00:04]} Kb7 {[%emt 0:00:03]} 15. g4 {[%emt 0:02:10]} Rhe8 {[%emt 0:14:56] Weiß steht etwas besser.} 16. h4 {[%emt 0:00:19]} Ka7 {[%emt 0:08:50]} (16... h6 $11 {verdient Beachtung.}) 17. Bf1 {[%emt 0:08:13]} (17. g5 $16) 17... Na5 {[%emt 0:03:11]} 18. a3 {[%emt 0:00:12]} Rc8 {[%emt 0:02:40]} 19. Qe3 {[%emt 0:10:51]} Nc4 {[%emt 0:12:50]} 20. Bxc4 {[%emt 0:00:26]} Rxc4 {[%emt 0:00:12]} 21. g5 {[%emt 0:01:23]} Bc6 {[%emt 0:11:00]} (21... Qxe3 $11 {und Schwarz ist OK.} 22. Rxe3 Bc6) 22. Rd4 {[%emt 0:02:30]} (22. b3 $1 $18 {[%cal Rb3c4]} Rc5 23. b4) 22... Rxd4 {[%emt 0:08:27]} (22... Bb7 $14) 23. Nxd4 $16 {[%emt 0:00:06]} Bd7 {[%emt 0:00:24]} 24. gxf6 {[%emt 0:00:53]} Bxf6 {[%emt 0:00:03]} 25. e5 {[%emt 0:00:39]} Bxh4 {[%emt 0:05:46]} 26. Rh1 {[%emt 0:00:04]} dxe5 {[%emt 0:00:06]} 27. fxe5 {[%emt 0:00:08]} (27. Rxh4 exd4 (27... Qxd4 28. Qg3 $11) 28. Qd3 e5 29. fxe5 Rxe5 30. Rxd4 Re1+ 31. Nd1 (31. Ka2 Be6+ 32. b3 Qc5 $14) 31... Be6 $17) (27. Qxe5 $5 Bd8 28. Rxh7 $14) 27... Be7 {[%emt 0:01:10]} 28. Rxh7 {[%emt 0:00:09]} Rf8 {[%emt 0:00:11]} 29. Ne4 {[%emt 0:00:11]} b4 {[%emt 0:00:42]} (29... Ka8 $14) 30. axb4 {[%emt 0:05:23]} Bxb4 {[%emt 0:01:18]} 31. c3 $1 $36 {[%emt 0:00:10][%mdl 2048] Weiss ist am Drücker.} Be7 {[%emt 0:02:41] [#]} 32. Nd6 {[%emt 0:00:37]} Bxd6 $11 {[%emt 0:02:44]} 33. exd6 {[%emt 0:01:15]} Rb8 {[%emt 0:04:04] Schwarz hat schwache schwarze Felder. Damit ist Schwarz auf der Verliererstraße.} (33... Kb8 $11) 34. b4 $1 $16 {[%emt 0:04:45] Aktives Gegenspiel!} (34. Rxf7 $2 Qxb2#) 34... Ka8 {[%emt 0:01:26]} (34... Rf8 $16) 35. Qe5 $18 {[%emt 0:19:01]} ({Jedoch nicht} 35. Rxf7 $6 Qxd6 36. Qf3+ Rb7 $16) 35... Be8 {[%emt 0:01:42]} 36. Ka2 {[%emt 0:08:34]} Rc8 {[%emt 0:04:34]} 37. Rh8 {[%emt 0:02:04]} Ka7 {[%emt 0:02:04][%cal Oc8c3]} 38. Qf4 {[%emt 0:05:18][%cal Oh8e8] Rxe8! ist eine echte Drohung.} Qb7 {[%emt 0:01:18]} 39. Qf2 {[%emt 0:00:35]} (39. Nb3 $142) 39... Ka8 {[%emt 0:00:22] [#]} 40. Nb3 {[%emt 0:00:53]} Kb8 $2 {[%emt 0:04:27]} (40... a5 {war angesagt.}) 41. Qd4 {[%emt 0:00:33]} Qd5 $2 {[%emt 0:00:40] [#]} (41... Ka8 42. Nc5 Qd5+ 43. Qxd5+ exd5) 42. Rxe8 $1 {[%emt 0:06:53][%mdl 512]} Rxe8 {[%emt 0:00:02][%mdl 4096] Endspiel. KQR-KQN} 43. Qb6+ {[%emt 0:00:08]} Ka8 {[%emt 0:00:03]} 44. Qxa6+ {[%emt 0:02:40] Weiß setzt Matt.} Kb8 {[%emt 0:00:00] [#]} 45. Qb6+ $1 {[%emt 0:00:16]} Ka8 {[%emt 0:00:01]} 46. Qc7 {[%emt 0:05:15]} Rb8 {[%emt 0:01:54]} 47. d7 {[%emt 0:00:07]} ({Nicht} 47. Qxf7 Qxd6 48. Kb2 Rf8 $11) 47... f5 {[%emt 0:01:00]} 48. Ka3 {[%emt 0:03:23]} Qd1 {[%emt 0:00:03] [#]} 49. b5 $1 {[%emt 0:00:47][%mdl 512]} Qd5 {[%emt 0:00:58]} (49... Rxb5 50. d8=Q+) 50. Nc5 {[%emt 0:02:50] Gewichteter Fehlerwert: Weiß=0.23 (präzise) /Schwarz=0.46.  Fehler:       	Weiß=4     	Schwarz=8     Ungenau:       	Weiß=1     	Schwarz=1     OK:         	Weiß=11    	Schwarz=8     Bester:       	Weiß=1     	Schwarz=2     Stark:        	Weiß=2     	---        Brilliant:      	Weiß=1     	---} 1-0

[Event "SixDays Budapest GM-C 10-2024"]
[Site "Budapest"]
[Date "2024.10.03"]
[Round "6.4"]
[White "Chen, Yining"]
[Black "Laddha, Shubh Jayesh"]
[Result "1/2-1/2"]
[ECO "D26"]
[WhiteElo "2252"]
[BlackElo "2308"]
[Annotator "RC"]
[PlyCount "121"]
[EventDate "2024.09.24"]
[EventType "tourn"]
[EventCountry "HUN"]
[SourceTitle "playchess.com"]
[Source "ChessBase"]
[SourceQuality "1"]
[TimeControl "5400+30"]

1. d4 {[%emt 0:00:03]} d5 {[%emt 0:00:05]} 2. c4 {[%emt 0:00:34]} dxc4 {[%emt 0:00:05]} 3. e3 {[%emt 0:00:13]} Nf6 {[%emt 0:00:23]} 4. Bxc4 {[%emt 0:00:07]} e6 {[%emt 0:00:05]} 5. Nf3 {[%emt 0:00:04]} c5 {[%emt 0:00:05]} 6. O-O {[%emt 0:00:06]} Nc6 {[%emt 0:00:25]} 7. a3 {[%emt 0:01:41]} a6 {[%emt 0:00:31]} 8. dxc5 {[%emt 0:00:43]} Qxd1 {[%emt 0:00:15]} 9. Rxd1 {[%emt 0:00:03]} Bxc5 {[%emt 0:00:05]} 10. b4 {[%emt 0:00:03]} Be7 {[%emt 0:03:59]} 11. Bb2 {[%emt 0:00:06]} O-O {[%emt 0:01:18]} 12. Nbd2 {[%emt 0:00:07]} Rd8 {[%emt 0:05:04]} 13. Rac1 {[%emt 0:00:35]} Bd7 {[%emt 0:06:26]} 14. Be2 {[%emt 0:00:11]} Be8 {[%emt 0:11:13]} 15. Nb3 {[%emt 0:02:52]} Ne4 {[%emt 0:07:45]} 16. Bd3 {[%emt 0:03:14]} Nd6 {[%emt 0:07:55]} 17. Nfd2 {[%emt 0:18:43]} Rac8 {[%emt 0:05:46]} 18. Kf1 {[%emt 0:05:45]} Na7 {[%emt 0:07:06]} 19. Nc5 {[%emt 0:02:35]} Bb5 {[%emt 0:05:59]} 20. Bxb5 {[%emt 0:02:06]} axb5 {[%emt 0:02:49]} 21. Be5 {[%emt 0:04:50]} b6 {[%emt 0:04:03]} 22. Bxd6 {[%emt 0:02:33]} Rxd6 {[%emt 0:01:01]} 23. Ncb3 {[%emt 0:06:44]} Rdd8 {[%emt 0:03:55]} 24. Nd4 {[%emt 0:09:00]} Kf8 {[%emt 0:02:02]} 25. Ke2 {[%emt 0:02:24]} Bf6 {[%emt 0:02:06]} 26. Rxc8 {[%emt 0:04:53]} Rxc8 {[%emt 0:00:39]} 27. Ne4 {[%emt 0:00:14]} Bxd4 {[%emt 0:00:48]} 28. Rxd4 {[%emt 0:01:13]} Ke7 {[%emt 0:01:00]} 29. Rd3 {[%emt 0:01:50]} f5 {[%emt 0:02:14]} 30. Nc3 {[%emt 0:06:55]} Rc4 {[%emt 0:01:58]} 31. Kd2 {[%emt 0:00:52]} g5 {[%emt 0:01:49]} 32. e4 {[%emt 0:01:09]} h5 {[%emt 0:07:00]} 33. exf5 {[%emt 0:00:41]} exf5 {[%emt 0:00:13]} 34. Nd5+ {[%emt 0:01:02]} Ke6 {[%emt 0:01:37]} 35. Nxb6 {[%emt 0:00:37]} Rc7 {[%emt 0:01:03]} 36. Nd5 {[%emt 0:01:09]} Rb7 {[%emt 0:03:00]} 37. h4 {[%emt 0:04:01]} gxh4 {[%emt 0:02:24]} 38. Nf4+ {[%emt 0:00:04]} Kf6 {[%emt 0:00:16]} 39. Ke3 {[%emt 0:01:42]} Nc8 {[%emt 0:02:05]} 40. Rd8 {[%emt 0:01:00]} Nb6 {[%emt 0:02:03]} 41. Rd6+ {[%emt 0:02:32]} Kf7 {[%emt 0:00:10]} 42. Rh6 {[%emt 0:01:26]} Re7+ {[%emt 0:00:54]} 43. Kd3 {[%emt 0:00:21]} Re4 {[%emt 0:01:24]} 44. Rxb6 {[%emt 0:01:34]} Rxf4 {[%emt 0:00:03]} 45. Ke3 {[%emt 0:00:06]} Re4+ {[%emt 0:00:35]} 46. Kf3 {[%emt 0:00:01]} Re5 {[%emt 0:00:34]} 47. Rh6 {[%emt 0:01:47]} Re4 {[%emt 0:00:51]} 48. Rxh5 {[%emt 0:00:50]} Kg6 {[%emt 0:00:06]} 49. Rh8 {[%emt 0:00:02]} Rc4 {[%emt 0:00:24]} 50. Rb8 {[%emt 0:01:57]} Kg5 {[%emt 0:00:19]} 51. Rg8+ {[%emt 0:01:14]} Kf6 {[%emt 0:00:10]} 52. Re8 {[%emt 0:00:10]} Kg5 {[%emt 0:00:19]} 53. Re3 {[%emt 0:01:37]} Rc2 {[%emt 0:00:09]} 54. Rd3 {[%emt 0:00:26]} Ra2 {[%emt 0:00:27]} 55. Rc3 {[%emt 0:01:55]} Rb2 {[%emt 0:00:51]} 56. Rc5 {[%emt 0:01:59]} Rb3+ {[%emt 0:00:08]} 57. Ke2 {[%emt 0:00:01]} Kf4 {[%emt 0:01:33]} 58. Rxb5 {[%emt 0:01:06]} Rb2+ {[%emt 0:00:23]} 59. Ke1 {[%emt 0:01:02]} Rb1+ {[%emt 0:00:04]} 60. Kd2 {[%emt 0:00:16]} Rb2+ {[%emt 0:00:05]} 61. Ke1 {[%emt 0:00:49]} 1/2-1/2